[Event "Titled Tuesday Blitz January 18 2022"]
[White "Milchev, Nikolay"]
[Black "Visakh N R"]
[WhiteFideId "2906090"]
[BlackFideId "25012223"]
[WhiteElo "2449"]
[BlackElo "2454"]
[Result "0-1"]
[Round "05"]
[TimeControl "180+1"]
[Date "2022.01.18"]
[WhiteClock "0:01:40"]
[BlackClock "0:01:44"]

1. Nf3 {[%clk 0:03:00]}  d5 {[%clk 0:02:59]} 2. c4 {[%clk 0:03:01]}  c6 {[%clk 0:02:57]} 3. cxd5 {[%clk 0:03:01]}  cxd5 {[%clk 0:02:57]} 4. d4 {[%clk 0:03:02]}  Nc6 {[%clk 0:02:57]} 5. Nc3 {[%clk 0:03:03]}  e6 {[%clk 0:02:55]} 6. Bf4 {[%clk 0:03:03]}  Bd6 {[%clk 0:02:55]} 7. Bg3 {[%clk 0:03:04]}  Nge7 {[%clk 0:02:54]} 8. e3 {[%clk 0:03:03]}  O-O {[%clk 0:02:55]} 9. Rc1 {[%clk 0:03:03]}  a6 {[%clk 0:02:52]} 10. Bd3 {[%clk 0:03:02]}  Ng6 {[%clk 0:02:46]} 11. O-O {[%clk 0:02:58]}  Bxg3 {[%clk 0:02:46]} 12. hxg3 {[%clk 0:02:58]}  Bd7 {[%clk 0:02:46]} 13. Na4 {[%clk 0:02:57]}  b6 {[%clk 0:02:26]} 14. a3 {[%clk 0:02:53]}  Na5 {[%clk 0:02:23]} 15. b4 {[%clk 0:02:32]}  Nc4 {[%clk 0:02:22]} 16. Bxc4 {[%clk 0:02:28]}  dxc4 {[%clk 0:02:23]} 17. Nd2 {[%clk 0:02:28]}  Bxa4 {[%clk 0:02:17]} 18. Qxa4 {[%clk 0:02:28]}  b5 {[%clk 0:02:18]} 19. Qc2 {[%clk 0:02:28]}  a5 {[%clk 0:02:18]} 20. Rb1 {[%clk 0:02:23]}  Ne7 {[%clk 0:02:17]} 21. Ne4 {[%clk 0:02:19]}  Nd5 {[%clk 0:02:16]} 22. Nc3 {[%clk 0:02:16]}  axb4 {[%clk 0:02:16]} 23. axb4 {[%clk 0:02:15]}  Nxc3 {[%clk 0:02:13]} 24. Qxc3 {[%clk 0:02:15]}  Qd5 {[%clk 0:02:10]} 25. f3 {[%clk 0:02:13]}  Ra2 {[%clk 0:02:06]} 26. Ra1 {[%clk 0:02:07]}  Rfa8 {[%clk 0:02:06]} 27. Rxa2 {[%clk 0:02:08]}  Rxa2 {[%clk 0:02:05]} 28. Ra1 {[%clk 0:02:09]}  Qa8 {[%clk 0:02:06]} 29. Rxa2 {[%clk 0:02:08]}  Qxa2 {[%clk 0:02:07]} 30. e4 {[%clk 0:02:01]}  Qb3 {[%clk 0:02:05]} 31. Qd2 {[%clk 0:02:02]}  c3 {[%clk 0:02:04]} 32. Qg5 {[%clk 0:02:02]}  h6 {[%clk 0:02:00]} 33. Qd8+ {[%clk 0:01:57]}  Kh7 {[%clk 0:02:00]} 34. Qe8 {[%clk 0:01:49]}  c2 {[%clk 0:01:53]} 35. Qxf7 {[%clk 0:01:50]}  c1=Q+ {[%clk 0:01:53]} 36. Kh2 {[%clk 0:01:51]}  Qbd1 {[%clk 0:01:52]} 37. g4 {[%clk 0:01:45]}  Qg1+ {[%clk 0:01:50]} 38. Kg3 {[%clk 0:01:46]}  Qce1+ {[%clk 0:01:49]} 39. Kf4 {[%clk 0:01:43]}  Qh2+ {[%clk 0:01:48]} 40. g3 {[%clk 0:01:40]}  Qhxg3# {[%clk 0:01:44]} 0-1


[Site "https://www.chess.com"]

[Event "Titled Tuesday Blitz January 18 2022"]
[White "Mitusov, Semen"]
[Black "Bacrot, Etienne"]
[WhiteFideId "14151049"]
[BlackFideId "605506"]
[WhiteElo "2246"]
[BlackElo "2673"]
[Result "0-1"]
[Round "05"]
[TimeControl "180+1"]
[Date "2022.01.18"]
[WhiteClock "0:00:01"]
[BlackClock "0:00:45"]

1. e4 {[%clk 0:02:41]}  c5 {[%clk 0:02:59]} 2. Nc3 {[%clk 0:02:40]}  Nc6 {[%clk 0:02:58]} 3. g3 {[%clk 0:02:40]}  g6 {[%clk 0:02:58]} 4. Bg2 {[%clk 0:02:41]}  Bg7 {[%clk 0:02:58]} 5. Nge2 {[%clk 0:02:41]}  e6 {[%clk 0:02:57]} 6. O-O {[%clk 0:02:42]}  Nge7 {[%clk 0:02:57]} 7. d3 {[%clk 0:02:43]}  d5 {[%clk 0:02:56]} 8. exd5 {[%clk 0:02:40]}  exd5 {[%clk 0:02:56]} 9. Bg5 {[%clk 0:02:34]}  h6 {[%clk 0:02:45]} 10. Bd2 {[%clk 0:02:20]}  O-O {[%clk 0:02:43]} 11. Nf4 {[%clk 0:02:19]}  d4 {[%clk 0:02:32]} 12. Ne4 {[%clk 0:02:18]}  b6 {[%clk 0:02:30]} 13. Re1 {[%clk 0:02:16]}  Bb7 {[%clk 0:02:27]} 14. c4 {[%clk 0:02:08]}  Qd7 {[%clk 0:02:25]} 15. Bc1 {[%clk 0:02:02]}  Rae8 {[%clk 0:02:23]} 16. Nd2 {[%clk 0:01:55]}  Ne5 {[%clk 0:02:20]} 17. Nf3 {[%clk 0:01:47]}  N5c6 {[%clk 0:01:51]} 18. Bd2 {[%clk 0:01:28]}  g5 {[%clk 0:01:50]} 19. Nh5 {[%clk 0:01:28]}  Ng6 {[%clk 0:01:50]} 20. Nxg7 {[%clk 0:01:21]}  Kxg7 {[%clk 0:01:51]} 21. Rxe8 {[%clk 0:01:08]}  Rxe8 {[%clk 0:01:51]} 22. Qf1 {[%clk 0:01:09]}  Nce5 {[%clk 0:01:49]} 23. Nxe5 {[%clk 0:01:05]}  Nxe5 {[%clk 0:01:48]} 24. f4 {[%clk 0:01:04]}  Bxg2 {[%clk 0:01:41]} 25. Qxg2 {[%clk 0:01:01]}  Nxd3 {[%clk 0:01:40]} 26. fxg5 {[%clk 0:00:59]}  hxg5 {[%clk 0:01:40]} 27. Bxg5 {[%clk 0:00:53]}  Qg4 {[%clk 0:01:35]} 28. Bh4 {[%clk 0:00:31]}  Re2 {[%clk 0:01:17]} 29. Qc6 {[%clk 0:00:30]}  Qf5 {[%clk 0:01:14]} 30. Rf1 {[%clk 0:00:28]}  Rf2 {[%clk 0:01:12]} 31. Rd1 {[%clk 0:00:18]}  Rxb2 {[%clk 0:01:02]} 32. Rf1 {[%clk 0:00:12]}  Rf2 {[%clk 0:01:01]} 33. Rd1 {[%clk 0:00:09]}  Rxa2 {[%clk 0:01:00]} 34. Rf1 {[%clk 0:00:03]}  Rf2 {[%clk 0:01:00]} 35. Rd1 {[%clk 0:00:03]}  Ne5 {[%clk 0:00:59]} 36. Qc7 {[%clk 0:00:01]}  Re2 {[%clk 0:00:45]} 0-1


[Site "https://www.chess.com"]

[Event "Titled Tuesday Blitz January 18 2022"]
[White "Narayanan.S.L"]
[Black "Xiong, Jeffery"]
[WhiteFideId "5058422"]
[BlackFideId "2047640"]
[WhiteElo "2494"]
[BlackElo "2727"]
[Result "1/2-1/2"]
[Round "05"]
[TimeControl "180+1"]
[Date "2022.01.18"]
[WhiteClock "0:00:49"]
[BlackClock "0:00:35"]

1. c4 {[%clk 0:02:59]}  c6 {[%clk 0:02:59]} 2. d4 {[%clk 0:02:56]}  d5 {[%clk 0:02:59]} 3. cxd5 {[%clk 0:02:57]}  cxd5 {[%clk 0:03:00]} 4. Bf4 {[%clk 0:02:56]}  e6 {[%clk 0:02:59]} 5. Nc3 {[%clk 0:02:55]}  Bd6 {[%clk 0:02:58]} 6. Bg3 {[%clk 0:02:56]}  Ne7 {[%clk 0:02:58]} 7. e3 {[%clk 0:02:56]}  Nf5 {[%clk 0:02:58]} 8. Bd3 {[%clk 0:02:55]}  Nxg3 {[%clk 0:02:52]} 9. hxg3 {[%clk 0:02:55]}  h6 {[%clk 0:02:53]} 10. Nf3 {[%clk 0:02:54]}  Nc6 {[%clk 0:02:54]} 11. a3 {[%clk 0:02:52]}  Bd7 {[%clk 0:02:54]} 12. Rc1 {[%clk 0:02:51]}  Rc8 {[%clk 0:02:54]} 13. e4 {[%clk 0:02:51]}  dxe4 {[%clk 0:02:54]} 14. Bxe4 {[%clk 0:02:51]}  O-O {[%clk 0:02:44]} 15. O-O {[%clk 0:02:50]}  Ne7 {[%clk 0:02:41]} 16. Re1 {[%clk 0:02:29]}  Re8 {[%clk 0:02:41]} 17. Ne5 {[%clk 0:02:23]}  Bxe5 {[%clk 0:02:30]} 18. dxe5 {[%clk 0:02:24]}  Bc6 {[%clk 0:02:30]} 19. Bxc6 {[%clk 0:02:20]}  Nxc6 {[%clk 0:02:26]} 20. Nb5 {[%clk 0:02:20]}  Qxd1 {[%clk 0:02:07]} 21. Rcxd1 {[%clk 0:02:20]}  Red8 {[%clk 0:02:07]} 22. f4 {[%clk 0:02:18]}  a6 {[%clk 0:01:36]} 23. Nd6 {[%clk 0:02:18]}  Rc7 {[%clk 0:01:37]} 24. Rc1 {[%clk 0:01:46]}  f6 {[%clk 0:01:37]} 25. b4 {[%clk 0:01:45]}  fxe5 {[%clk 0:01:36]} 26. fxe5 {[%clk 0:01:46]}  Rcd7 {[%clk 0:01:03]} 27. Nxb7 {[%clk 0:01:46]}  Rxb7 {[%clk 0:01:04]} 28. Rxc6 {[%clk 0:01:46]}  Rd2 {[%clk 0:01:05]} 29. Rf1 {[%clk 0:01:04]}  a5 {[%clk 0:01:02]} 30. Rf2 {[%clk 0:00:58]}  Rxf2 {[%clk 0:00:48]} 31. Kxf2 {[%clk 0:00:59]}  axb4 {[%clk 0:00:48]} 32. axb4 {[%clk 0:00:59]}  Rxb4 {[%clk 0:00:49]} 33. Rxe6 {[%clk 0:01:00]}  Kf7 {[%clk 0:00:48]} 34. Ra6 {[%clk 0:00:55]}  Re4 {[%clk 0:00:48]} 35. Ra7+ {[%clk 0:00:54]}  Kg6 {[%clk 0:00:46]} 36. Re7 {[%clk 0:00:53]}  Kf5 {[%clk 0:00:40]} 37. Kf3 {[%clk 0:00:51]}  Rxe5 {[%clk 0:00:37]} 38. Rxg7 {[%clk 0:00:51]}  Kf6 {[%clk 0:00:37]} 39. Rg4 {[%clk 0:00:50]}  Ra5 {[%clk 0:00:37]} 40. Re4 {[%clk 0:00:49]}  Ra3+ {[%clk 0:00:36]} 41. Kg4 {[%clk 0:00:49]}  Ra2 {[%clk 0:00:37]} 42. Rf4+ {[%clk 0:00:48]}  Kg6 {[%clk 0:00:37]} 43. Kh3 {[%clk 0:00:49]}  Ra1 {[%clk 0:00:35]} 1/2-1/2


[Site "https://www.chess.com"]

[Event "Titled Tuesday Blitz January 18 2022"]
[White "Nesterov, Arseniy"]
[Black "Macovei, Andrei"]
[WhiteFideId "24198455"]
[BlackFideId "13904680"]
[WhiteElo "2489"]
[BlackElo "2410"]
[Result "1/2-1/2"]
[Round "05"]
[TimeControl "180+1"]
[Date "2022.01.18"]
[WhiteClock "0:00:05"]
[BlackClock "0:00:25"]

1. d4 {[%clk 0:03:00]}  Nf6 {[%clk 0:02:54]} 2. c4 {[%clk 0:03:00]}  e6 {[%clk 0:02:52]} 3. Nc3 {[%clk 0:03:00]}  Bb4 {[%clk 0:02:50]} 4. Qc2 {[%clk 0:03:00]}  d5 {[%clk 0:02:49]} 5. Nf3 {[%clk 0:03:00]}  dxc4 {[%clk 0:02:47]} 6. e4 {[%clk 0:03:00]}  b5 {[%clk 0:02:47]} 7. a4 {[%clk 0:02:58]}  c6 {[%clk 0:02:46]} 8. Be2 {[%clk 0:02:58]}  Bb7 {[%clk 0:02:42]} 9. O-O {[%clk 0:02:57]}  a6 {[%clk 0:02:43]} 10. e5 {[%clk 0:02:53]}  Nd5 {[%clk 0:02:40]} 11. Bg5 {[%clk 0:02:51]}  Be7 {[%clk 0:02:28]} 12. Ne4 {[%clk 0:02:44]}  O-O {[%clk 0:02:25]} 13. Bxe7 {[%clk 0:02:33]}  Qxe7 {[%clk 0:02:26]} 14. Nd6 {[%clk 0:02:05]}  Rd8 {[%clk 0:02:19]} 15. b3 {[%clk 0:01:59]}  cxb3 {[%clk 0:02:17]} 16. Qxb3 {[%clk 0:01:59]}  Rxd6 {[%clk 0:02:15]} 17. exd6 {[%clk 0:02:00]}  Qxd6 {[%clk 0:02:16]} 18. Rfc1 {[%clk 0:01:57]}  Nd7 {[%clk 0:02:16]} 19. Bf1 {[%clk 0:01:48]}  Rd8 {[%clk 0:02:15]} 20. Nd2 {[%clk 0:01:24]}  N5b6 {[%clk 0:02:03]} 21. a5 {[%clk 0:01:17]}  Nc8 {[%clk 0:01:57]} 22. Qe3 {[%clk 0:01:11]}  Nf6 {[%clk 0:01:52]} 23. Nb3 {[%clk 0:01:09]}  Nd7 {[%clk 0:01:51]} 24. Rd1 {[%clk 0:01:05]}  Ne7 {[%clk 0:01:50]} 25. Rac1 {[%clk 0:00:54]}  Nd5 {[%clk 0:01:47]} 26. Qg3 {[%clk 0:00:44]}  Qxg3 {[%clk 0:01:44]} 27. hxg3 {[%clk 0:00:45]}  Kf8 {[%clk 0:01:35]} 28. Be2 {[%clk 0:00:44]}  Ke7 {[%clk 0:01:34]} 29. Bf3 {[%clk 0:00:45]}  N7f6 {[%clk 0:01:27]} 30. Nc5 {[%clk 0:00:44]}  Bc8 {[%clk 0:01:27]} 31. Nd3 {[%clk 0:00:39]}  Bb7 {[%clk 0:01:27]} 32. Ne5 {[%clk 0:00:39]}  Rd6 {[%clk 0:01:27]} 33. Rd2 {[%clk 0:00:36]}  Nd7 {[%clk 0:01:27]} 34. Nd3 {[%clk 0:00:31]}  h6 {[%clk 0:01:14]} 35. Rdc2 {[%clk 0:00:29]}  g5 {[%clk 0:00:58]} 36. Bxd5 {[%clk 0:00:20]}  Rxd5 {[%clk 0:00:53]} 37. Nb4 {[%clk 0:00:20]}  Rxd4 {[%clk 0:00:51]} 38. Nxc6+ {[%clk 0:00:21]}  Bxc6 {[%clk 0:00:51]} 39. Rxc6 {[%clk 0:00:22]}  Rd6 {[%clk 0:00:51]} 40. f4 {[%clk 0:00:16]}  g4 {[%clk 0:00:47]} 41. R1c2 {[%clk 0:00:10]}  f5 {[%clk 0:00:47]} 42. Kf2 {[%clk 0:00:10]}  Nf6 {[%clk 0:00:46]} 43. Rc7+ {[%clk 0:00:05]}  Rd7 {[%clk 0:00:46]} 44. R2c6 {[%clk 0:00:03]}  Ne4+ {[%clk 0:00:37]} 45. Ke3 {[%clk 0:00:03]}  Rxc7 {[%clk 0:00:37]} 46. Rxc7+ {[%clk 0:00:04]}  Kd6 {[%clk 0:00:38]} 47. Ra7 {[%clk 0:00:05]}  Nc5 {[%clk 0:00:36]} 48. Kd4 {[%clk 0:00:05]}  Nb3+ {[%clk 0:00:35]} 49. Kc3 {[%clk 0:00:06]}  Nxa5 {[%clk 0:00:36]} 50. Rxa6+ {[%clk 0:00:06]}  Nc6 {[%clk 0:00:37]} 51. Ra8 {[%clk 0:00:06]}  Kd5 {[%clk 0:00:34]} 52. Rh8 {[%clk 0:00:05]}  Ke4 {[%clk 0:00:26]} 53. Rxh6 {[%clk 0:00:05]}  Nd4 {[%clk 0:00:27]} 54. Kd2 {[%clk 0:00:04]}  b4 {[%clk 0:00:26]} 55. Rh7 {[%clk 0:00:03]}  Nb3+ {[%clk 0:00:24]} 56. Ke2 {[%clk 0:00:04]}  Nd4+ {[%clk 0:00:24]} 57. Kd2 {[%clk 0:00:04]}  Nb3+ {[%clk 0:00:25]} 58. Ke2 {[%clk 0:00:04]}  Nd4+ {[%clk 0:00:25]} 59. Kd2 {[%clk 0:00:05]} 1/2-1/2


[Site "https://www.chess.com"]

[Event "Titled Tuesday Blitz January 18 2022"]
[White "Ozates, Tuna"]
[Black "Kukhmazov, Arsen"]
[WhiteFideId "6354521"]
[BlackFideId "24108260"]
[WhiteElo "1872"]
[BlackElo "2487"]
[Result "1-0"]
[Round "05"]
[TimeControl "180+1"]
[Date "2022.01.18"]
[WhiteClock "0:00:11"]
[BlackClock "0:00:06"]

1. e4 {[%clk 0:03:00]}  c6 {[%clk 0:02:57]} 2. d4 {[%clk 0:02:58]}  d5 {[%clk 0:02:57]} 3. exd5 {[%clk 0:02:58]}  cxd5 {[%clk 0:02:58]} 4. c4 {[%clk 0:02:59]}  Nf6 {[%clk 0:02:53]} 5. Nc3 {[%clk 0:03:00]}  g6 {[%clk 0:02:53]} 6. cxd5 {[%clk 0:02:55]}  Bg7 {[%clk 0:02:50]} 7. g3 {[%clk 0:02:53]}  Nxd5 {[%clk 0:02:49]} 8. Bg2 {[%clk 0:02:53]}  Be6 {[%clk 0:02:36]} 9. Nge2 {[%clk 0:02:45]}  O-O {[%clk 0:02:36]} 10. O-O {[%clk 0:02:42]}  Nc6 {[%clk 0:02:34]} 11. a3 {[%clk 0:02:37]}  Nxc3 {[%clk 0:02:33]} 12. bxc3 {[%clk 0:02:36]}  Bc4 {[%clk 0:02:34]} 13. Rb1 {[%clk 0:02:34]}  Rb8 {[%clk 0:02:31]} 14. Re1 {[%clk 0:02:33]}  e5 {[%clk 0:02:22]} 15. Be3 {[%clk 0:02:28]}  exd4 {[%clk 0:02:20]} 16. Nxd4 {[%clk 0:02:28]}  Nxd4 {[%clk 0:02:20]} 17. Bxd4 {[%clk 0:02:27]}  b6 {[%clk 0:02:16]} 18. Qa4 {[%clk 0:02:25]}  Qc7 {[%clk 0:02:07]} 19. Rbd1 {[%clk 0:02:02]}  Be6 {[%clk 0:02:04]} 20. Bxg7 {[%clk 0:01:59]}  Kxg7 {[%clk 0:02:05]} 21. Qd4+ {[%clk 0:01:58]}  Kg8 {[%clk 0:02:05]} 22. h4 {[%clk 0:01:58]}  Rfc8 {[%clk 0:02:05]} 23. Rd3 {[%clk 0:01:51]}  Qc5 {[%clk 0:02:05]} 24. Qf6 {[%clk 0:01:49]}  Qf5 {[%clk 0:01:48]} 25. Qxf5 {[%clk 0:01:45]}  Bxf5 {[%clk 0:01:48]} 26. Rde3 {[%clk 0:01:41]}  Rc5 {[%clk 0:01:48]} 27. Re7 {[%clk 0:01:28]}  Ra5 {[%clk 0:01:47]} 28. c4 {[%clk 0:01:25]}  Rc8 {[%clk 0:01:46]} 29. Bd5 {[%clk 0:01:24]}  Rf8 {[%clk 0:01:38]} 30. R1e3 {[%clk 0:01:21]}  Kg7 {[%clk 0:01:25]} 31. Rf3 {[%clk 0:01:15]}  Kf6 {[%clk 0:00:49]} 32. Rc7 {[%clk 0:01:09]}  h5 {[%clk 0:00:49]} 33. Re3 {[%clk 0:01:07]}  Ra4 {[%clk 0:00:38]} 34. Kg2 {[%clk 0:01:03]}  Ra5 {[%clk 0:00:20]} 35. Kf3 {[%clk 0:00:48]}  Ra4 {[%clk 0:00:20]} 36. Rc6+ {[%clk 0:00:36]}  Kg7 {[%clk 0:00:20]} 37. Rc7 {[%clk 0:00:28]}  Bg4+ {[%clk 0:00:20]} 38. Kf4 {[%clk 0:00:17]}  Kf6 {[%clk 0:00:20]} 39. f3 {[%clk 0:00:16]}  Be6 {[%clk 0:00:10]} 40. Bxe6 {[%clk 0:00:15]}  fxe6 {[%clk 0:00:11]} 41. g4 {[%clk 0:00:15]}  hxg4 {[%clk 0:00:11]} 42. fxg4 {[%clk 0:00:14]}  g5+ {[%clk 0:00:07]} 43. hxg5+ {[%clk 0:00:15]}  Kg6+ {[%clk 0:00:07]} 44. Kg3 {[%clk 0:00:16]}  Kxg5 {[%clk 0:00:05]} 45. Re5+ {[%clk 0:00:11]}  Kf6 {[%clk 0:00:06]} 46. Re3 {[%clk 0:00:11]}  e5 {[%clk 0:00:06]} 47. Rf3+ {[%clk 0:00:11]} 1-0


[Site "https://www.chess.com"]

[Event "Titled Tuesday Blitz January 18 2022"]
[White "Perez Gormaz, Matias"]
[Black "Baskin, Robert"]
[WhiteFideId "3406342"]
[BlackFideId "24662402"]
[WhiteElo "2352"]
[BlackElo "2488"]
[Result "1-0"]
[Round "05"]
[TimeControl "180+1"]
[Date "2022.01.18"]
[WhiteClock "0:00:05"]
[BlackClock "0:00:02"]

1. e4 {[%clk 0:03:00]}  g6 {[%clk 0:02:53]} 2. d4 {[%clk 0:03:00]}  Bg7 {[%clk 0:02:53]} 3. Nc3 {[%clk 0:03:01]}  d6 {[%clk 0:02:54]} 4. Be3 {[%clk 0:03:01]}  a6 {[%clk 0:02:54]} 5. g4 {[%clk 0:03:01]}  b5 {[%clk 0:02:47]} 6. Bg2 {[%clk 0:03:01]}  Bb7 {[%clk 0:02:48]} 7. h4 {[%clk 0:03:01]}  b4 {[%clk 0:02:31]} 8. Nce2 {[%clk 0:03:00]}  Nf6 {[%clk 0:02:30]} 9. Ng3 {[%clk 0:03:00]}  h5 {[%clk 0:02:27]} 10. gxh5 {[%clk 0:02:49]}  Nxh5 {[%clk 0:02:27]} 11. N1e2 {[%clk 0:02:49]}  Nxg3 {[%clk 0:02:23]} 12. Nxg3 {[%clk 0:02:48]}  Nd7 {[%clk 0:02:23]} 13. h5 {[%clk 0:02:47]}  e6 {[%clk 0:01:44]} 14. hxg6 {[%clk 0:02:42]}  Rxh1+ {[%clk 0:01:42]} 15. Nxh1 {[%clk 0:02:43]}  fxg6 {[%clk 0:01:40]} 16. Qg4 {[%clk 0:02:43]}  Nf8 {[%clk 0:01:36]} 17. O-O-O {[%clk 0:02:41]}  Qd7 {[%clk 0:01:35]} 18. Bg5 {[%clk 0:02:40]}  Nh7 {[%clk 0:01:24]} 19. Bh4 {[%clk 0:02:32]}  g5 {[%clk 0:01:15]} 20. Bxg5 {[%clk 0:02:11]}  Nxg5 {[%clk 0:01:16]} 21. Qxg5 {[%clk 0:02:11]}  Qe7 {[%clk 0:01:16]} 22. Qg4 {[%clk 0:01:57]}  O-O-O {[%clk 0:01:13]} 23. Bh3 {[%clk 0:01:56]}  Rh8 {[%clk 0:00:57]} 24. Qxe6+ {[%clk 0:01:52]}  Qxe6 {[%clk 0:00:58]} 25. Bxe6+ {[%clk 0:01:53]}  Kb8 {[%clk 0:00:49]} 26. Ng3 {[%clk 0:01:49]}  Rh2 {[%clk 0:00:46]} 27. Nf5 {[%clk 0:01:49]}  Bf6 {[%clk 0:00:44]} 28. f3 {[%clk 0:01:44]}  Bg5+ {[%clk 0:00:43]} 29. Kb1 {[%clk 0:01:44]}  Rf2 {[%clk 0:00:44]} 30. a3 {[%clk 0:01:31]}  bxa3 {[%clk 0:00:43]} 31. bxa3 {[%clk 0:01:32]}  Rxf3 {[%clk 0:00:43]} 32. Rg1 {[%clk 0:01:25]}  Bf6 {[%clk 0:00:36]} 33. Rg6 {[%clk 0:01:15]}  Bxd4 {[%clk 0:00:14]} 34. Nxd4 {[%clk 0:01:11]}  Rf1+ {[%clk 0:00:15]} 35. Kb2 {[%clk 0:01:11]}  Bxe4 {[%clk 0:00:16]} 36. Rg4 {[%clk 0:01:05]}  Bb7 {[%clk 0:00:15]} 37. Rg7 {[%clk 0:01:01]}  Rf2 {[%clk 0:00:15]} 38. Bd7 {[%clk 0:00:34]}  Be4 {[%clk 0:00:14]} 39. Nc6+ {[%clk 0:00:25]}  Kb7 {[%clk 0:00:13]} 40. Nd4 {[%clk 0:00:18]}  Kb6 {[%clk 0:00:13]} 41. Rg4 {[%clk 0:00:17]}  d5 {[%clk 0:00:08]} 42. Ba4 {[%clk 0:00:16]}  c5 {[%clk 0:00:07]} 43. Ne6 {[%clk 0:00:14]}  c4 {[%clk 0:00:03]} 44. Kc3 {[%clk 0:00:08]}  Ka5 {[%clk 0:00:03]} 45. Bc6 {[%clk 0:00:05]}  Rxc2+ {[%clk 0:00:03]} 46. Kd4 {[%clk 0:00:06]}  Rd2+ {[%clk 0:00:03]} 47. Kc5 {[%clk 0:00:06]}  c3 {[%clk 0:00:03]} 48. Nd4 {[%clk 0:00:05]}  c2 {[%clk 0:00:02]} 49. Nb3# {[%clk 0:00:05]} 1-0


[Site "https://www.chess.com"]

[Event "Titled Tuesday Blitz January 18 2022"]
[White "Pichot, Alan"]
[Black "Piorun, Kacper"]
[WhiteFideId "110973"]
[BlackFideId "1130420"]
[WhiteElo "2898"]
[BlackElo "2979"]
[Result "1-0"]
[Round "05"]
[TimeControl "180+1"]
[Date "2022.01.18"]
[WhiteClock "0:00:06"]
[BlackClock "0:00:02"]

1. e4 {[%clk 0:03:00]}  e6 {[%clk 0:03:00]} 2. d4 {[%clk 0:02:58]}  d5 {[%clk 0:03:00]} 3. Nc3 {[%clk 0:02:59]}  Bb4 {[%clk 0:03:00]} 4. e5 {[%clk 0:02:58]}  Qd7 {[%clk 0:03:01]} 5. h4 {[%clk 0:02:54]}  b6 {[%clk 0:03:00]} 6. a3 {[%clk 0:02:51]}  Bxc3+ {[%clk 0:03:00]} 7. bxc3 {[%clk 0:02:52]}  Ba6 {[%clk 0:03:00]} 8. Qg4 {[%clk 0:02:45]}  f5 {[%clk 0:02:59]} 9. Qg3 {[%clk 0:02:42]}  Bxf1 {[%clk 0:02:58]} 10. Kxf1 {[%clk 0:02:43]}  Nc6 {[%clk 0:02:58]} 11. Ne2 {[%clk 0:02:38]}  O-O-O {[%clk 0:02:57]} 12. Nf4 {[%clk 0:02:30]}  g6 {[%clk 0:02:52]} 13. a4 {[%clk 0:02:24]}  Nge7 {[%clk 0:02:44]} 14. Ba3 {[%clk 0:02:09]}  Rhg8 {[%clk 0:02:14]} 15. Qg5 {[%clk 0:02:04]}  Rde8 {[%clk 0:02:09]} 16. f3 {[%clk 0:01:42]}  Na5 {[%clk 0:02:05]} 17. Kf2 {[%clk 0:01:37]}  Nc4 {[%clk 0:01:54]} 18. Bxe7 {[%clk 0:01:37]}  Qxe7 {[%clk 0:01:54]} 19. Qxe7 {[%clk 0:01:29]}  Rxe7 {[%clk 0:01:55]} 20. Rab1 {[%clk 0:01:19]}  Kb7 {[%clk 0:01:54]} 21. Rh3 {[%clk 0:01:14]}  Kc6 {[%clk 0:01:31]} 22. Rg3 {[%clk 0:01:14]}  Rgg7 {[%clk 0:01:18]} 23. Rg5 {[%clk 0:01:13]}  Kd7 {[%clk 0:01:14]} 24. h5 {[%clk 0:01:12]}  c6 {[%clk 0:01:00]} 25. hxg6 {[%clk 0:01:10]}  hxg6 {[%clk 0:01:00]} 26. Rh1 {[%clk 0:00:57]}  b5 {[%clk 0:00:56]} 27. axb5 {[%clk 0:00:56]}  cxb5 {[%clk 0:00:56]} 28. Nxg6 {[%clk 0:00:49]}  Kc7 {[%clk 0:00:45]} 29. Rhh5 {[%clk 0:00:37]}  Re8 {[%clk 0:00:42]} 30. Nf4 {[%clk 0:00:36]}  Rxg5 {[%clk 0:00:42]} 31. Rxg5 {[%clk 0:00:36]}  a5 {[%clk 0:00:43]} 32. Rg7+ {[%clk 0:00:34]}  Kc6 {[%clk 0:00:19]} 33. Rg6 {[%clk 0:00:33]}  Kd7 {[%clk 0:00:19]} 34. Nd3 {[%clk 0:00:33]}  a4 {[%clk 0:00:19]} 35. Nc5+ {[%clk 0:00:34]}  Kc8 {[%clk 0:00:18]} 36. Nxe6 {[%clk 0:00:32]}  a3 {[%clk 0:00:13]} 37. Nc5 {[%clk 0:00:32]}  Kc7 {[%clk 0:00:13]} 38. Ra6 {[%clk 0:00:30]}  f4 {[%clk 0:00:13]} 39. g4 {[%clk 0:00:25]}  Rh8 {[%clk 0:00:11]} 40. g5 {[%clk 0:00:18]}  Rh2+ {[%clk 0:00:11]} 41. Kg1 {[%clk 0:00:16]}  Rxc2 {[%clk 0:00:11]} 42. g6 {[%clk 0:00:17]}  Nd2 {[%clk 0:00:11]} 43. Kg2 {[%clk 0:00:12]}  Ne4+ {[%clk 0:00:04]} 44. Kh3 {[%clk 0:00:12]}  Nxc5 {[%clk 0:00:01]} 45. dxc5 {[%clk 0:00:09]}  Rc1 {[%clk 0:00:02]} 46. Kg4 {[%clk 0:00:06]}  Rg1+ {[%clk 0:00:02]} 47. Kf5 {[%clk 0:00:06]} 1-0


[Site "https://www.chess.com"]

[Event "Titled Tuesday Blitz January 18 2022"]
[White "Pultinevicius, Paulius"]
[Black "Kovalev, Egor"]
[WhiteFideId "12809390"]
[BlackFideId "24124117"]
[WhiteElo "2413"]
[BlackElo "2243"]
[Result "1-0"]
[Round "05"]
[TimeControl "180+1"]
[Date "2022.01.18"]
[WhiteClock "0:00:24"]
[BlackClock "0:00:01"]

1. d4 {[%clk 0:03:00]}  Nf6 {[%clk 0:03:00]} 2. c4 {[%clk 0:03:01]}  g6 {[%clk 0:03:00]} 3. Nc3 {[%clk 0:03:01]}  d5 {[%clk 0:03:00]} 4. cxd5 {[%clk 0:02:58]}  Nxd5 {[%clk 0:03:01]} 5. Bd2 {[%clk 0:02:59]}  Nb6 {[%clk 0:03:00]} 6. Nf3 {[%clk 0:02:57]}  Bg7 {[%clk 0:03:01]} 7. e4 {[%clk 0:02:58]}  O-O {[%clk 0:03:00]} 8. h3 {[%clk 0:02:57]}  Nc6 {[%clk 0:01:53]} 9. d5 {[%clk 0:02:56]}  Na5 {[%clk 0:01:46]} 10. Qc2 {[%clk 0:02:48]}  c6 {[%clk 0:01:36]} 11. Nd1 {[%clk 0:02:33]}  Nd7 {[%clk 0:01:36]} 12. Rc1 {[%clk 0:02:26]}  cxd5 {[%clk 0:01:35]} 13. exd5 {[%clk 0:02:26]}  b6 {[%clk 0:01:35]} 14. Bb5 {[%clk 0:02:17]}  Nf6 {[%clk 0:01:31]} 15. Bxa5 {[%clk 0:02:03]}  bxa5 {[%clk 0:01:23]} 16. Bc6 {[%clk 0:02:03]}  Rb8 {[%clk 0:01:13]} 17. Ne3 {[%clk 0:02:03]}  Ba6 {[%clk 0:01:11]} 18. Rd1 {[%clk 0:01:50]}  Nh5 {[%clk 0:00:57]} 19. Nd4 {[%clk 0:01:46]}  Qb6 {[%clk 0:00:53]} 20. Nb3 {[%clk 0:01:18]}  Nf4 {[%clk 0:00:47]} 21. Nc5 {[%clk 0:00:49]}  Qb4+ {[%clk 0:00:32]} 22. Rd2 {[%clk 0:00:50]}  Bc8 {[%clk 0:00:11]} 23. g3 {[%clk 0:00:49]}  Nxh3 {[%clk 0:00:09]} 24. Nd3 {[%clk 0:00:39]}  Qb6 {[%clk 0:00:07]} 25. Nc4 {[%clk 0:00:37]}  Qd4 {[%clk 0:00:05]} 26. Nf4 {[%clk 0:00:35]}  Qc5 {[%clk 0:00:02]} 27. Nxh3 {[%clk 0:00:35]}  Bh6 {[%clk 0:00:01]} 28. Nf4 {[%clk 0:00:34]}  Bg7 {[%clk 0:00:01]} 29. O-O {[%clk 0:00:28]}  Ba6 {[%clk 0:00:01]} 30. b3 {[%clk 0:00:25]}  Rb4 {[%clk 0:00:02]} 31. Nd3 {[%clk 0:00:24]}  Qd6 {[%clk 0:00:01]} 32. Nxb4 {[%clk 0:00:24]} 1-0


[Site "https://www.chess.com"]